[Event "*** Titled Tuesday Blitz"]
[Site "Chess.com"]
[Date "2018.07.03"]
[Round "1"]
[White "WPWPWP-2015"]
[Black "joppie2"]
[Result "0-1"]
[WhiteElo "2380"]
[BlackElo "2709"]
[TimeControl "180+2"]
[EndTime "13:09:46 PDT"]
[Termination "joppie2 won on time"]

1. e4 {[%clk 0:02:56.6]} 1... e6 {[%clk 0:03:00.5]} 2. d4 {[%clk 0:02:47.7]}
2... d5 {[%clk 0:03:01.9]} 3. Nc3 {[%clk 0:02:47.8]} 3... Nf6 {[%clk 0:03:01.7]}
4. Bg5 {[%clk 0:02:32.8]} 4... dxe4 {[%clk 0:02:58.4]} 5. Nxe4 {[%clk
0:02:32.4]} 5... Be7 {[%clk 0:02:59.3]} 6. Bxf6 {[%clk 0:02:28.9]} 6... gxf6
{[%clk 0:02:59.7]} 7. Nf3 {[%clk 0:02:29.4]} 7... f5 {[%clk 0:02:57.5]} 8. Nc3
{[%clk 0:02:29.2]} 8... a6 {[%clk 0:02:58.5]} 9. g3 {[%clk 0:02:26.9]} 9... b5
{[%clk 0:02:55.9]} 10. Bg2 {[%clk 0:02:26]} 10... Bb7 {[%clk 0:02:57.3]} 11. O-O
{[%clk 0:02:21.4]} 11... Qd6 {[%clk 0:02:54.5]} 12. Qe2 {[%clk 0:02:14.4]} 12...
Nd7 {[%clk 0:02:53.7]} 13. Rfd1 {[%clk 0:02:12.9]} 13... b4 {[%clk 0:02:45.6]}
14. Na4 {[%clk 0:02:09.3]} 14... Be4 {[%clk 0:02:40.5]} 15. c4 {[%clk
0:01:59.8]} 15... O-O {[%clk 0:02:35.9]} 16. b3 {[%clk 0:01:49.8]} 16... Bf6
{[%clk 0:02:36.6]} 17. Rac1 {[%clk 0:01:49.1]} 17... Rad8 {[%clk 0:02:34.8]} 18.
c5 {[%clk 0:01:39.6]} 18... Qd5 {[%clk 0:02:24.2]} 19. Nb2 {[%clk 0:01:38.2]}
19... Nb8 {[%clk 0:02:10.3]} 20. Nc4 {[%clk 0:01:31.5]} 20... Nc6 {[%clk
0:02:11]} 21. Ne3 {[%clk 0:01:31.1]} 21... Bxf3 {[%clk 0:01:54.1]} 22. Bxf3
{[%clk 0:01:22]} 22... Nxd4 {[%clk 0:01:50.3]} 23. Nxd5 {[%clk 0:01:22.3]} 23...
Nxe2+ {[%clk 0:01:51.5]} 24. Bxe2 {[%clk 0:01:21.4]} 24... exd5 {[%clk
0:01:35.8]} 25. Bxa6 {[%clk 0:01:20.4]} 25... Bc3 {[%clk 0:01:36.6]} 26. c6
{[%clk 0:01:10]} 26... Kg7 {[%clk 0:01:34.1]} 27. a4 {[%clk 0:01:00.6]} 27...
Rfe8 {[%clk 0:01:31]} 28. Bb7 {[%clk 0:00:59.2]} 28... Re2 {[%clk 0:01:31.9]}
29. a5 {[%clk 0:00:57.7]} 29... Ra2 {[%clk 0:01:32.8]} 30. a6 {[%clk 0:00:58.5]}
30... d4 {[%clk 0:01:34.5]} 31. Rd3 {[%clk 0:00:58.7]} 31... Re8 {[%clk
0:01:35.5]} 32. Rf1 {[%clk 0:00:53.9]} 32... Ree2 {[%clk 0:01:34.3]} 33. Kg2
{[%clk 0:00:54.4]} 33... Reb2 {[%clk 0:01:34.9]} 34. Rf3 {[%clk 0:00:41.6]}
34... Rxb3 {[%clk 0:01:36]} 35. Rxf5 {[%clk 0:00:41.2]} 35... Rba3 {[%clk
0:01:37.5]} 36. Rb5 {[%clk 0:00:35.3]} 36... b3 {[%clk 0:01:37.4]} 37. a7 {[%clk
0:00:31.7]} 37... b2 {[%clk 0:01:37.1]} 38. a8=Q {[%clk 0:00:29.1]} 38... Rxa8
{[%clk 0:01:37.4]} 39. Bxa8 {[%clk 0:00:30]} 39... Rxa8 {[%clk 0:01:39.3]} 40.
Rb1 {[%clk 0:00:29.9]} 40... Ra6 {[%clk 0:01:37.6]} 41. Kf3 {[%clk 0:00:17.7]}
41... Rxc6 {[%clk 0:01:36]} 42. Ke4 {[%clk 0:00:18]} 42... Rf6 {[%clk
0:01:34.4]} 43. f4 {[%clk 0:00:18.3]} 43... Re6+ {[%clk 0:01:35.5]} 44. Kf3
{[%clk 0:00:15.5]} 44... Re3+ {[%clk 0:01:36.1]} 45. Kf2 {[%clk 0:00:16.6]}
45... Rd3 {[%clk 0:01:35]} 46. R1xb2 {[%clk 0:00:17.6]} 46... Bxb2 {[%clk
0:01:35.1]} 47. Rxb2 {[%clk 0:00:18.6]} 47... Rc3 {[%clk 0:01:35.8]} 48. Ke2
{[%clk 0:00:19]} 48... c5 {[%clk 0:01:37.3]} 49. Rb6 {[%clk 0:00:18.5]} 49... c4
{[%clk 0:01:36.1]} 50. Kd2 {[%clk 0:00:18.8]} 50... Rf3 {[%clk 0:01:36.3]} 51.
Rd6 {[%clk 0:00:18.4]} 51... c3+ {[%clk 0:01:30.4]} 52. Kc2 {[%clk 0:00:13.6]}
52... Rf2+ {[%clk 0:01:31.1]} 53. Kc1 {[%clk 0:00:12.3]} 53... Rd2 {[%clk
0:01:30.3]} 54. g4 {[%clk 0:00:13.5]} 54... Kf8 {[%clk 0:01:29]} 55. f5 {[%clk
0:00:12.5]} 55... Ke7 {[%clk 0:01:30.4]} 56. Rd5 {[%clk 0:00:13.8]} 56... Kf6
{[%clk 0:01:24.9]} 57. h4 {[%clk 0:00:13.8]} 57... h6 {[%clk 0:01:26.5]} 58. Rd7
{[%clk 0:00:09.9]} 58... Ke5 {[%clk 0:01:23.1]} 59. Rxf7 {[%clk 0:00:09.5]}
59... Ke4 {[%clk 0:01:24.1]} 60. Rd7 {[%clk 0:00:07.5]} 60... Rh2 {[%clk
0:01:23.1]} 61. f6 {[%clk 0:00:07.7]} 61... d3 {[%clk 0:01:23.8]} 62. Re7+
{[%clk 0:00:07.5]} 62... Kf4 {[%clk 0:01:24.1]} 63. Kb1 {[%clk 0:00:06.4]} 63...
c2+ {[%clk 0:01:18.6]} 64. Kb2 {[%clk 0:00:07.1]} 64... Rh1 {[%clk 0:01:19.9]}
65. Rc7 {[%clk 0:00:06.7]} 65... Rb1+ {[%clk 0:01:21.1]} 66. Ka2 {[%clk
0:00:07.6]} 66... c1=Q {[%clk 0:01:22.7]} 67. Rxc1 {[%clk 0:00:08.5]} 67... Rxc1
{[%clk 0:01:24.6]} 0-1

[Event "*** Titled Tuesday Blitz"]
[Site "Chess.com"]
[Date "2018.07.03"]
[Round "1"]
[White "DiamondCrusher22"]
[Black "Grebeniuk-S"]
[Result "0-1"]
[WhiteElo "1947"]
[BlackElo "2468"]
[TimeControl "180+2"]
[EndTime "13:09:49 PDT"]
[Termination "Grebeniuk-S won by checkmate"]

1. e4 {[%clk 0:03:01.9]} 1... d5 {[%clk 0:02:59.4]} 2. exd5 {[%clk 0:03:02.7]}
2... Qxd5 {[%clk 0:03:01.3]} 3. Nc3 {[%clk 0:03:03.8]} 3... Qa5 {[%clk
0:03:02.4]} 4. Bc4 {[%clk 0:03:05.2]} 4... Nf6 {[%clk 0:03:03]} 5. d3 {[%clk
0:03:06.6]} 5... c6 {[%clk 0:03:03.1]} 6. Bd2 {[%clk 0:03:07.9]} 6... Bf5 {[%clk
0:03:01.1]} 7. Nf3 {[%clk 0:03:07.2]} 7... e6 {[%clk 0:03:01.5]} 8. h3 {[%clk
0:03:08.3]} 8... h6 {[%clk 0:03:00.2]} 9. Qe2 {[%clk 0:03:09.4]} 9... Nbd7
{[%clk 0:03:00.3]} 10. O-O {[%clk 0:01:55.6]} 10... Qc7 {[%clk 0:02:44.1]} 11.
Rfe1 {[%clk 0:01:39.1]} 11... Bc5 {[%clk 0:02:30.5]} 12. Ne4 {[%clk 0:01:12.1]}
12... Be7 {[%clk 0:02:24]} 13. Ng3 {[%clk 0:01:07.5]} 13... Bg6 {[%clk
0:01:31.1]} 14. Nh4 {[%clk 0:01:04.1]} 14... Bh7 {[%clk 0:01:28.6]} 15. Nhf5
{[%clk 0:01:02.5]} 15... Bf8 {[%clk 0:01:04.4]} 16. Bxe6 {[%clk 0:00:12.5]}
16... fxe6 {[%clk 0:01:05]} 17. Qxe6+ {[%clk 0:00:14.4]} 17... Kd8 {[%clk
0:01:06.5]} 18. Nh5 {[%clk 0:00:15.6]} 18... Bxf5 {[%clk 0:01:03.5]} 19. Qxf5
{[%clk 0:00:16.3]} 19... Nxh5 {[%clk 0:00:43.3]} 20. Qxh5 {[%clk 0:00:07.2]}
20... Nf6 {[%clk 0:00:44.6]} 21. Qg6 {[%clk 0:00:07]} 21... Bd6 {[%clk
0:00:37.9]} 22. Re6 {[%clk 0:00:06.1]} 22... Re8 {[%clk 0:00:22.8]} 23. Rae1
{[%clk 0:00:07.3]} 23... Rxe6 {[%clk 0:00:23.5]} 24. Rxe6 {[%clk 0:00:09.2]}
24... Qd7 {[%clk 0:00:24.4]} 25. Qf5 {[%clk 0:00:07.4]} 25... Rc8 {[%clk
0:00:16.3]} 26. Bc3 {[%clk 0:00:08.4]} 26... Be7 {[%clk 0:00:15.6]} 27. Qe5
{[%clk 0:00:07.9]} 27... Rc7 {[%clk 0:00:16.2]} 28. Qe2 {[%clk 0:00:07.1]} 28...
Qd5 {[%clk 0:00:13.3]} 29. Bd2 {[%clk 0:00:06.2]} 29... Rd7 {[%clk 0:00:14.1]}
30. Bf4 {[%clk 0:00:05.7]} 30... Qf5 {[%clk 0:00:14.6]} 31. Bg3 {[%clk
0:00:06.4]} 31... Ke8 {[%clk 0:00:14.6]} 32. Re5 {[%clk 0:00:07.5]} 32... Qg6
{[%clk 0:00:14.6]} 33. Re6 {[%clk 0:00:08]} 33... Kf7 {[%clk 0:00:15.1]} 34. Re3
{[%clk 0:00:08]} 34... Qf5 {[%clk 0:00:16.1]} 35. Rf3 {[%clk 0:00:09.1]} 35...
Qe6 {[%clk 0:00:17.1]} 36. Re3 {[%clk 0:00:10]} 36... Qd5 {[%clk 0:00:17.3]} 37.
Bh2 {[%clk 0:00:10]} 37... Bd6 {[%clk 0:00:18.3]} 38. g3 {[%clk 0:00:10.6]}
38... Bc5 {[%clk 0:00:18.9]} 39. Rf3 {[%clk 0:00:10.9]} 39... Re7 {[%clk
0:00:20.4]} 40. Qd1 {[%clk 0:00:11.9]} 40... Kg8 {[%clk 0:00:18.8]} 41. c3
{[%clk 0:00:12.6]} 41... Bd6 {[%clk 0:00:17]} 42. d4 {[%clk 0:00:13.5]} 42...
Qxa2 {[%clk 0:00:17.2]} 43. Kg2 {[%clk 0:00:12.9]} 43... Qd5 {[%clk 0:00:18.2]}
44. Qd2 {[%clk 0:00:12.5]} 44... b5 {[%clk 0:00:18.4]} 45. g4 {[%clk 0:00:08.6]}
45... Bxh2 {[%clk 0:00:18]} 46. c4 {[%clk 0:00:07.1]} 46... bxc4 {[%clk
0:00:17.9]} 47. Qb4 {[%clk 0:00:08.7]} 47... Bd6 {[%clk 0:00:17.1]} 48. Qa5
{[%clk 0:00:07.8]} 48... Kh7 {[%clk 0:00:17.4]} 49. Qd8 {[%clk 0:00:08.4]} 49...
Qe6 {[%clk 0:00:16.3]} 50. g5 {[%clk 0:00:08.9]} 50... hxg5 {[%clk 0:00:17.1]}
51. d5 {[%clk 0:00:09]} 51... cxd5 {[%clk 0:00:17.9]} 52. b3 {[%clk 0:00:10.5]}
52... g4 {[%clk 0:00:11.9]} 53. hxg4 {[%clk 0:00:10.2]} 53... Qxg4+ {[%clk
0:00:13.8]} 54. Rg3 {[%clk 0:00:10.2]} 54... Bxg3 {[%clk 0:00:14.5]} 55. bxc4
{[%clk 0:00:09.7]} 55... Bc7+ {[%clk 0:00:14.4]} 56. Kf1 {[%clk 0:00:09.9]}
56... Bxd8 {[%clk 0:00:16.3]} 57. cxd5 {[%clk 0:00:10.8]} 57... Re2 {[%clk
0:00:13.2]} 58. d6 {[%clk 0:00:10.2]} 58... Qf3 {[%clk 0:00:15.1]} 59. d7 {[%clk
0:00:11.1]} 59... Qxf2# {[%clk 0:00:17]} 0-1

[Event "*** Titled Tuesday Blitz"]
[Site "Chess.com"]
[Date "2018.07.03"]
[Round "1"]
[White "Rickstereo"]
[Black "Angry_Serb"]
[Result "1-0"]
[WhiteElo "2176"]
[BlackElo "2500"]
[TimeControl "180+2"]
[EndTime "13:09:53 PDT"]
[Termination "Rickstereo won by resignation"]

1. c4 {[%clk 0:03:01.8]} 1... d6 {[%clk 0:03:01.1]} 2. Nc3 {[%clk 0:03:02]} 2...
g6 {[%clk 0:03:02.5]} 3. e4 {[%clk 0:03:00.3]} 3... Bg7 {[%clk 0:03:03.7]} 4.
Nge2 {[%clk 0:03:01.5]} 4... e5 {[%clk 0:03:04.8]} 5. g3 {[%clk 0:03:01.6]} 5...
Nc6 {[%clk 0:03:05.7]} 6. Bg2 {[%clk 0:03:02.7]} 6... Bg4 {[%clk 0:03:07]} 7.
O-O {[%clk 0:03:00.6]} 7... h5 {[%clk 0:03:02.6]} 8. h3 {[%clk 0:02:50.6]} 8...
Be6 {[%clk 0:03:03.6]} 9. d3 {[%clk 0:02:49.8]} 9... Qd7 {[%clk 0:03:05]} 10.
Kh2 {[%clk 0:02:49.6]} 10... Nge7 {[%clk 0:03:01.7]} 11. Nd5 {[%clk 0:02:47.6]}
11... O-O-O {[%clk 0:02:32.4]} 12. Bg5 {[%clk 0:02:36.6]} 12... Rdf8 {[%clk
0:02:33.3]} 13. b4 {[%clk 0:02:33.5]} 13... f6 {[%clk 0:02:31.5]} 14. Be3 {[%clk
0:02:29.3]} 14... h4 {[%clk 0:02:32.9]} 15. g4 {[%clk 0:02:20.4]} 15... f5
{[%clk 0:02:34.1]} 16. f3 {[%clk 0:02:13.9]} 16... Nd4 {[%clk 0:02:24.6]} 17.
Nxd4 {[%clk 0:02:05.2]} 17... exd4 {[%clk 0:02:25.6]} 18. Bg5 {[%clk 0:02:06.1]}
18... Nc6 {[%clk 0:02:17.2]} 19. b5 {[%clk 0:01:55.6]} 19... Ne5 {[%clk
0:02:18.4]} 20. f4 {[%clk 0:01:29]} 20... Nf7 {[%clk 0:02:08.4]} 21. Ne7+ {[%clk
0:01:28.5]} 21... Kb8 {[%clk 0:02:07.3]} 22. Nxg6 {[%clk 0:01:29.9]} 22... Nxg5
{[%clk 0:02:04.5]} 23. fxg5 {[%clk 0:01:22.1]} 23... fxg4 {[%clk 0:02:00]} 24.
Nxf8 {[%clk 0:01:18]} 24... Bxf8 {[%clk 0:01:59.3]} 25. hxg4 {[%clk 0:00:55.7]}
25... h3 {[%clk 0:02:00]} 26. Bf3 {[%clk 0:00:56.3]} 26... Bg7 {[%clk
0:02:01.4]} 27. Qe2 {[%clk 0:00:52.4]} 27... Be5+ {[%clk 0:02:02.4]} 28. Kh1
{[%clk 0:00:53.5]} 28... Qg7 {[%clk 0:02:02.7]} 29. Qf2 {[%clk 0:00:45]} 29...
Qxg5 {[%clk 0:01:55.4]} 30. Be2 {[%clk 0:00:45.1]} 30... b6 {[%clk 0:01:55.6]}
31. Qf3 {[%clk 0:00:39.9]} 31... Kb7 {[%clk 0:01:54.6]} 32. a4 {[%clk
0:00:40.1]} 32... Rh4 {[%clk 0:01:53.7]} 33. a5 {[%clk 0:00:34]} 33... bxa5
{[%clk 0:01:54.6]} 34. Rxa5 {[%clk 0:00:20.1]} 34... Rxg4 {[%clk 0:01:31.6]} 35.
Rfa1 {[%clk 0:00:18.2]} 35... Rf4 {[%clk 0:01:32.9]} 36. Rxa7+ {[%clk
0:00:18.3]} 36... Kc8 {[%clk 0:01:34.4]} 37. Ra8+ {[%clk 0:00:19.4]} 37... Kd7
{[%clk 0:01:35.7]} 38. Rg1 {[%clk 0:00:12.7]} 38... Rxf3 {[%clk 0:01:25.7]} 39.
Rxg5 {[%clk 0:00:12.9]} 39... Rf2 {[%clk 0:01:27.4]} 40. Ra2 {[%clk 0:00:07.5]}
40... Ke7 {[%clk 0:01:07.7]} 41. Rh5 {[%clk 0:00:07.8]} 41... h2 {[%clk
0:00:56.2]} 42. Rh7+ {[%clk 0:00:08.4]} 42... Kf6 {[%clk 0:00:49.6]} 43. Rh6+
{[%clk 0:00:04.2]} 43... Kf7 {[%clk 0:00:44.5]} 44. Rxe6 {[%clk 0:00:05.2]}
44... Rxe2 {[%clk 0:00:45.8]} 45. Rxe2 {[%clk 0:00:05.3]} 45... Kxe6 {[%clk
0:00:47.2]} 46. Rg2 {[%clk 0:00:05.8]} 46... Bf4 {[%clk 0:00:46.9]} 47. Rg7
{[%clk 0:00:06.2]} 47... d5 {[%clk 0:00:44.6]} 48. exd5+ {[%clk 0:00:07.1]}
48... Kd6 {[%clk 0:00:46.1]} 49. Rg6+ {[%clk 0:00:07.8]} 49... Kc5 {[%clk
0:00:47.2]} 50. Rc6+ {[%clk 0:00:08.8]} 50... Kb4 {[%clk 0:00:48.7]} 51. d6
{[%clk 0:00:09.8]} 51... cxd6 {[%clk 0:00:46.8]} 52. b6 {[%clk 0:00:10.2]} 52...
Kc3 {[%clk 0:00:48]} 53. b7 {[%clk 0:00:11.1]} 53... d5 {[%clk 0:00:49.6]} 54.
cxd5+ {[%clk 0:00:11.7]} 54... Kxd3 {[%clk 0:00:51.1]} 55. d6 {[%clk 0:00:13.3]}
55... Ke2 {[%clk 0:00:51.9]} 56. b8=Q {[%clk 0:00:13.9]} 56... d3 {[%clk
0:00:53.8]} 57. Qb2+ {[%clk 0:00:14.3]} 57... d2 {[%clk 0:00:55.1]} 58. d7
{[%clk 0:00:15.1]} 58... Ke1 {[%clk 0:00:55.9]} 59. Re6+ {[%clk 0:00:15.9]}
59... Kf1 {[%clk 0:00:55.6]} 60. Qb1+ {[%clk 0:00:16.3]} 60... Kf2 {[%clk
0:00:56.4]} 61. d8=Q {[%clk 0:00:16.1]} 61... Be3 {[%clk 0:00:57.7]} 62. Qf6+
{[%clk 0:00:15.2]} 1-0

[Event "*** Titled Tuesday Blitz"]
[Site "Chess.com"]
[Date "2018.07.03"]
[Round "1"]
[White "RiskyDecision"]
[Black "Spring199"]
[Result "0-1"]
[WhiteElo "2490"]
[BlackElo "2180"]
[TimeControl "180+2"]
[EndTime "13:10:00 PDT"]
[Termination "Spring199 won by resignation"]

1. d4 {[%clk 0:02:50.9]} 1... d5 {[%clk 0:02:59.6]} 2. c4 {[%clk 0:02:51.5]}
2... e6 {[%clk 0:03:00]} 3. Nf3 {[%clk 0:02:51.6]} 3... Nf6 {[%clk 0:03:01]} 4.
g3 {[%clk 0:02:53.1]} 4... Bb4+ {[%clk 0:03:01.2]} 5. Bd2 {[%clk 0:02:53.3]}
5... Be7 {[%clk 0:03:02.4]} 6. Bg2 {[%clk 0:02:52.6]} 6... O-O {[%clk
0:03:03.8]} 7. O-O {[%clk 0:02:52.4]} 7... Bd7 {[%clk 0:03:03.2]} 8. Qc2 {[%clk
0:02:52.8]} 8... Nc6 {[%clk 0:03:01.8]} 9. cxd5 {[%clk 0:02:52]} 9... exd5
{[%clk 0:03:01.8]} 10. Nc3 {[%clk 0:02:51.3]} 10... Bd6 {[%clk 0:03:01.6]} 11.
Bg5 {[%clk 0:02:50.2]} 11... Be6 {[%clk 0:03:00.9]} 12. a3 {[%clk 0:02:47.6]}
12... h6 {[%clk 0:03:00.1]} 13. Bxf6 {[%clk 0:02:48.4]} 13... Qxf6 {[%clk
0:03:02]} 14. Rfd1 {[%clk 0:02:44.6]} 14... Rfe8 {[%clk 0:02:56.5]} 15. b4
{[%clk 0:02:40.8]} 15... a6 {[%clk 0:02:52.8]} 16. Na4 {[%clk 0:02:39.4]} 16...
Bf5 {[%clk 0:02:46]} 17. Qb3 {[%clk 0:02:38.6]} 17... Rxe2 {[%clk 0:02:44.5]}
18. Qxd5 {[%clk 0:02:13.8]} 18... Bc2 {[%clk 0:02:38.6]} 19. Nc5 {[%clk
0:01:44.8]} 19... Bxd1 {[%clk 0:02:36.3]} 20. Rxd1 {[%clk 0:01:46.7]} 20... Bxc5
{[%clk 0:02:34]} 21. bxc5 {[%clk 0:01:34.9]} 21... Rd8 {[%clk 0:02:31.1]} 22.
Qc4 {[%clk 0:01:32.9]} 22... Ree8 {[%clk 0:02:17.8]} 23. d5 {[%clk 0:01:22.7]}
23... Ne5 {[%clk 0:02:17.1]} 24. Nxe5 {[%clk 0:01:23.8]} 24... Qxe5 {[%clk
0:02:17.7]} 25. Rb1 {[%clk 0:01:19.6]} 25... Rb8 {[%clk 0:02:06.8]} 26. h3
{[%clk 0:01:14.6]} 26... Qe2 {[%clk 0:01:54.8]} 27. Qd4 {[%clk 0:00:56.9]} 27...
Qc2 {[%clk 0:01:49.7]} 28. Rf1 {[%clk 0:00:53.6]} 28... Rbd8 {[%clk 0:01:41.5]}
29. a4 {[%clk 0:00:49.9]} 29... Re2 {[%clk 0:01:38.5]} 30. Qh4 {[%clk
0:00:41.4]} 30... Rde8 {[%clk 0:01:35.3]} 31. Qb4 {[%clk 0:00:36]} 31... Qb2
{[%clk 0:01:20.6]} 32. Qa5 {[%clk 0:00:36.9]} 32... Qe5 {[%clk 0:01:12.5]} 33.
Qb4 {[%clk 0:00:31.1]} 33... Rb2 {[%clk 0:01:11.3]} 34. Qc4 {[%clk 0:00:31.9]}
34... Qe2 {[%clk 0:01:07]} 35. Qf4 {[%clk 0:00:29.7]} 35... Qe5 {[%clk
0:01:02.4]} 36. Qc4 {[%clk 0:00:30.6]} 36... Qe2 {[%clk 0:00:36.5]} 37. Qf4
{[%clk 0:00:30.7]} 37... Qe7 {[%clk 0:00:35.1]} 38. Qd4 {[%clk 0:00:27.8]} 38...
Re2 {[%clk 0:00:31.9]} 39. d6 {[%clk 0:00:21.5]} 39... cxd6 {[%clk 0:00:32.2]}
40. cxd6 {[%clk 0:00:21.6]} 40... Qd7 {[%clk 0:00:33.6]} 41. Kh2 {[%clk
0:00:17]} 41... Re1 {[%clk 0:00:33.1]} 42. Rxe1 {[%clk 0:00:17.9]} 42... Rxe1
{[%clk 0:00:34.9]} 43. Bd5 {[%clk 0:00:18.3]} 43... Re8 {[%clk 0:00:34.3]} 44.
Bb3 {[%clk 0:00:15.5]} 44... Rd8 {[%clk 0:00:35]} 45. Qd5 {[%clk 0:00:17]} 45...
Kh8 {[%clk 0:00:31.2]} 46. a5 {[%clk 0:00:17.1]} 46... Qxd6 {[%clk 0:00:32.2]}
47. Qxf7 {[%clk 0:00:18.1]} 47... Qf6 {[%clk 0:00:33.2]} 48. Qxf6 {[%clk
0:00:16.4]} 48... gxf6 {[%clk 0:00:35.1]} 49. Kg2 {[%clk 0:00:16.9]} 49... Rd3
{[%clk 0:00:34.3]} 50. Bc4 {[%clk 0:00:16]} 50... Ra3 {[%clk 0:00:33.9]} 51. Bd5
{[%clk 0:00:17.3]} 51... Rxa5 {[%clk 0:00:35]} 52. Bxb7 {[%clk 0:00:18.8]} 52...
Ra2 {[%clk 0:00:32.5]} 53. Bd5 {[%clk 0:00:18.6]} 53... Rb2 {[%clk 0:00:31.7]}
54. Kf3 {[%clk 0:00:17.8]} 54... a5 {[%clk 0:00:32.4]} 55. Bc6 {[%clk 0:00:18]}
55... Rb4 {[%clk 0:00:28.7]} 56. Ke3 {[%clk 0:00:18.9]} 56... a4 {[%clk
0:00:29.5]} 57. Kd2 {[%clk 0:00:13.6]} 57... a3 {[%clk 0:00:30.5]} 58. Bd5
{[%clk 0:00:14.3]} 58... Rd4+ {[%clk 0:00:31.3]} 0-1

[Event "*** Titled Tuesday Blitz"]
[Site "Chess.com"]
[Date "2018.07.03"]
[Round "1"]
[White "Last7Samurai"]
[Black "ama18"]
[Result "1-0"]
[WhiteElo "2595"]
[BlackElo "2265"]
[TimeControl "180+2"]
[EndTime "13:10:01 PDT"]
[Termination "Last7Samurai won by resignation"]

1. e4 {[%clk 0:03:01.6]} 1... e6 {[%clk 0:03:01]} 2. d4 {[%clk 0:03:02.3]} 2...
d5 {[%clk 0:03:02.4]} 3. Nd2 {[%clk 0:03:03.7]} 3... Be7 {[%clk 0:03:02.4]} 4.
Bd3 {[%clk 0:03:02]} 4... c5 {[%clk 0:03:03]} 5. exd5 {[%clk 0:03:01]} 5... exd5
{[%clk 0:03:03.1]} 6. Ngf3 {[%clk 0:03:01.6]} 6... Nf6 {[%clk 0:03:04.3]} 7. O-O
{[%clk 0:03:02.2]} 7... O-O {[%clk 0:03:05.8]} 8. dxc5 {[%clk 0:03:03]} 8...
Bxc5 {[%clk 0:03:07.5]} 9. Nb3 {[%clk 0:02:59.9]} 9... Bb6 {[%clk 0:03:08.4]}
10. c3 {[%clk 0:02:53]} 10... Nc6 {[%clk 0:03:08.8]} 11. Re1 {[%clk 0:02:51.1]}
11... Bg4 {[%clk 0:03:09.1]} 12. Be3 {[%clk 0:02:51.4]} 12... Bxf3 {[%clk
0:02:43.6]} 13. Qxf3 {[%clk 0:02:48]} 13... Bxe3 {[%clk 0:02:36.4]} 14. Rxe3
{[%clk 0:02:41.9]} 14... d4 {[%clk 0:02:36.6]} 15. cxd4 {[%clk 0:02:32.6]} 15...
Nxd4 {[%clk 0:02:35.6]} 16. Qxb7 {[%clk 0:02:28.4]} 16... Rb8 {[%clk 0:02:22.8]}
17. Qxa7 {[%clk 0:02:27.9]} 17... Nxb3 {[%clk 0:02:01.5]} 18. axb3 {[%clk
0:02:29.8]} 18... Nd5 {[%clk 0:01:46.1]} 19. Rf3 {[%clk 0:02:21.7]} 19... Nb4
{[%clk 0:01:33.2]} 20. Bc4 {[%clk 0:02:10.2]} 20... Nc6 {[%clk 0:01:33.6]} 21.
Qe3 {[%clk 0:01:56.6]} 21... Qc7 {[%clk 0:01:25.6]} 22. Re1 {[%clk 0:01:46.7]}
22... Qd7 {[%clk 0:01:18.6]} 23. h4 {[%clk 0:01:34.4]} 23... Nd4 {[%clk
0:01:17]} 24. Rxf7 {[%clk 0:01:25.9]} 24... Rxf7 {[%clk 0:00:56.1]} 25. Bxf7+
{[%clk 0:01:27.8]} 25... Qxf7 {[%clk 0:00:49.8]} 26. Qxd4 {[%clk 0:01:27.3]}
26... Qxb3 {[%clk 0:00:50.5]} 27. g3 {[%clk 0:01:22.7]} 27... Qf7 {[%clk
0:00:26.7]} 28. b4 {[%clk 0:01:21.9]} 28... h6 {[%clk 0:00:24.7]} 29. Re4 {[%clk
0:01:15.9]} 29... Qf8 {[%clk 0:00:18.7]} 30. b5 {[%clk 0:01:12.7]} 30... Qf5
{[%clk 0:00:13.1]} 31. Re7 {[%clk 0:01:04.4]} 31... Qg6 {[%clk 0:00:11.5]} 32.
Rd7 {[%clk 0:00:51.5]} 32... Kh7 {[%clk 0:00:09.3]} 33. b6 {[%clk 0:00:48.4]}
33... Rxb6 {[%clk 0:00:09.4]} 34. Rxg7+ {[%clk 0:00:49]} 34... Qxg7 {[%clk
0:00:10.8]} 35. Qxb6 {[%clk 0:00:50.2]} 35... Qa1+ {[%clk 0:00:12.1]} 36. Kg2
{[%clk 0:00:51.3]} 36... Qc1 {[%clk 0:00:13.5]} 37. Qb7+ {[%clk 0:00:51.8]}
37... Kg8 {[%clk 0:00:14.1]} 38. Qb8+ {[%clk 0:00:52.3]} 38... Kg7 {[%clk
0:00:14.7]} 39. Qf4 {[%clk 0:00:53.8]} 39... Qc6+ {[%clk 0:00:14.5]} 40. Kh2
{[%clk 0:00:54.9]} 40... Qc2 {[%clk 0:00:15]} 41. Kh3 {[%clk 0:00:54.9]} 41...
Qc8+ {[%clk 0:00:15.3]} 42. g4 {[%clk 0:00:55.6]} 42... Qc3+ {[%clk 0:00:15.1]}
43. f3 {[%clk 0:00:56.6]} 43... Qe1 {[%clk 0:00:15.3]} 44. Qd4+ {[%clk
0:00:54.7]} 44... Kg8 {[%clk 0:00:13.6]} 45. Qd5+ {[%clk 0:00:55.1]} 45... Kg7
{[%clk 0:00:14.4]} 46. Qd4+ {[%clk 0:00:56.3]} 46... Kg8 {[%clk 0:00:15.7]} 47.
g5 {[%clk 0:00:51.2]} 47... Qh1+ {[%clk 0:00:12.9]} 48. Kg4 {[%clk 0:00:46.9]}
48... Qg2+ {[%clk 0:00:13.9]} 49. Kf4 {[%clk 0:00:47.5]} 49... Qh2+ {[%clk
0:00:14.4]} 50. Kf5 {[%clk 0:00:47.9]} 50... Qh3+ {[%clk 0:00:14.6]} 51. Qg4
{[%clk 0:00:45.8]} 51... Qf1 {[%clk 0:00:11.9]} 52. gxh6+ {[%clk 0:00:46.3]}
52... Kf8 {[%clk 0:00:13]} 53. Qg7+ {[%clk 0:00:30.9]} 53... Ke8 {[%clk
0:00:13.6]} 54. Qe5+ {[%clk 0:00:31.7]} 54... Kf8 {[%clk 0:00:12.9]} 55. Qf6+
{[%clk 0:00:29.8]} 55... Ke8 {[%clk 0:00:13.1]} 56. h7 {[%clk 0:00:27]} 56...
Qd3+ {[%clk 0:00:14.1]} 57. Kg5 {[%clk 0:00:21.5]} 57... Qxh7 {[%clk 0:00:13.5]}
58. Qg6+ {[%clk 0:00:22.5]} 1-0